bitfinex/quotes_BTCUSD_20251016
["timestamp","ask_amount","ask_price","bid_price","bid_amount"]
[1760578563717,6.26573528,111160.0,111150.0,0.00272848]
[1760578564135,6.26573528,111160.0,111150.0,0.11592848]
[1760578564789,6.27520184,111160.0,111150.0,0.00272848]
[1760578565652,6.04876222,111160.0,111150.0,0.00272848]
[1760578565860,6.22868305,111160.0,111150.0,0.11592848]
[1760578566292,5.18871246,111160.0,111150.0,0.11592848]
[1760578566619,6.08667018,111160.0,111150.0,0.00272848]
[1760578566826,6.08667018,111160.0,111150.0,0.11592848]
[1760578567044,5.90674935,111160.0,111150.0,0.00272848]
[1760578567256,6.08667018,111160.0,111150.0,0.11592848]
[1760578567471,5.90674935,111160.0,111150.0,0.11592848]
[1760578567677,5.90674935,111160.0,111150.0,0.00272848]
[1760578567882,5.90674935,111160.0,111150.0,0.11592848]
[1760578568065,5.90674935,111160.0,111150.0,0.00272848]
[1760578568247,5.90674935,111160.0,111150.0,0.11592848]
[1760578568869,5.13638971,111160.0,111150.0,0.2958655]
[1760578569072,5.52156953,111160.0,111150.0,0.2958655]
[1760578569274,5.07868938,111160.0,111150.0,0.1826655]
[1760578569598,4.69350956,111160.0,111150.0,0.2958655]
[1760578569808,5.03350956,111160.0,111150.0,0.2958655]
[1760578570011,0.01046656,111160.0,111150.0,0.68104532]
[1760578570306,0.01046656,111160.0,111150.0,0.1826655]
[1760578570503,0.39564638,111160.0,111150.0,0.1826655]
[1760578570704,0.39564638,111160.0,111150.0,0.2958655]
[1760578570918,0.39464638,111160.0,111150.0,0.2958655]
[1760578571745,0.39464638,111160.0,111150.0,0.1826655]
[1760578571945,0.39464638,111160.0,111150.0,0.2958655]
[1760578572207,0.39464638,111160.0,111150.0,10.2958655]
[1760578572646,0.39464638,111160.0,111150.0,10.1826655]
[1760578573085,0.39464638,111160.0,111150.0,10.2958655]
[1760578573307,0.00946656,111160.0,111150.0,10.2958655]
[1760578573535,0.39464638,111160.0,111150.0,10.2958655]
[1760578573744,0.38517982,111160.0,111150.0,10.1826655]
[1760578574198,0.38517982,111160.0,111150.0,10.2958655]
[1760578575059,0.39433643,111160.0,111150.0,10.2958655]
[1760578575504,0.00915661,111160.0,111150.0,10.2958655]
[1760578576019,5.42762725,111170.0,111160.0,0.17992083]
[1760578576234,5.43762725,111170.0,111160.0,0.18042062]
[1760578576433,5.42731143,111170.0,111160.0,0.18042062]
[1760578577654,5.42731143,111170.0,111160.0,0.29362062]
[1760578578629,5.42731143,111170.0,111160.0,0.18042062]
[1760578579034,5.42731143,111170.0,111160.0,0.29362062]
[1760578579035,5.04213161,111170.0,111160.0,0.29362062]
[1760578579236,5.42731143,111170.0,111160.0,0.18042062]
[1760578579429,5.42731143,111170.0,111160.0,0.00049979]
[1760578579628,5.44671496,111170.0,111160.0,0.11369979]
[1760578579899,5.44671496,111170.0,111160.0,0.18042062]
[1760578580133,5.44671496,111170.0,111160.0,0.29358062]
[1760578580363,5.44671496,111170.0,111160.0,0.18042062]
[1760578580573,5.44671496,111170.0,111160.0,0.29358062]
[1760578580789,5.44671496,111170.0,111160.0,0.18042062]
[1760578581004,5.44671496,111170.0,111160.0,0.29358062]
[1760578581431,5.44671496,111170.0,111160.0,0.29572141]
[1760578581873,5.06153514,111170.0,111160.0,0.29572141]
[1760578582105,5.44671496,111170.0,111160.0,0.18256141]
[1760578582365,5.44671496,111170.0,111160.0,0.29572141]
[1760578583237,5.44671496,111170.0,111160.0,0.18256141]
[1760578583425,5.44671496,111170.0,111160.0,0.00264058]
[1760578583641,5.44671496,111170.0,111160.0,0.11580058]
[1760578583867,5.44671496,111170.0,111160.0,0.00264058]
[1760578584251,5.44671496,111170.0,111160.0,0.11580058]
[1760578584464,5.44671496,111170.0,111160.0,0.00264058]
[1760578584682,6.19117163,111170.0,111160.0,0.00264058]
[1760578584887,6.15103662,111170.0,111160.0,0.00264058]
[1760578585101,6.17809044,111170.0,111160.0,0.00264058]
[1760578585315,6.21045987,111170.0,111160.0,0.00264058]
[1760578585524,6.1780908,111170.0,111160.0,0.00264058]
[1760578585941,6.1790908,111170.0,111160.0,0.11580058]
[1760578586179,6.1790908,111170.0,111160.0,0.00264058]
[1760578586377,6.1790908,111170.0,111160.0,0.11580058]
[1760578587030,6.1790908,111170.0,111160.0,0.00264058]
[1760578587231,6.1790908,111170.0,111160.0,0.11580058]
[1760578587377,6.1790908,111170.0,111160.0,0.00264058]
[1760578587586,6.1790908,111170.0,111160.0,0.11580058]
[1760578587799,5.77706397,111170.0,111160.0,0.11580058]
[1760578588154,5.77706397,111170.0,111160.0,0.18256141]
[1760578588155,5.5644589,111170.0,111160.0,0.18256141]
[1760578588302,5.5644589,111170.0,111160.0,0.29572141]
[1760578588504,5.5644589,111170.0,111160.0,0.18256141]
[1760578588710,4.72253514,111170.0,111160.0,0.29572141]
[1760578588917,5.08831143,111170.0,111160.0,0.29572141]
[1760578589125,5.42831143,111170.0,111160.0,0.29572141]
[1760578589543,5.44771598,111170.0,111160.0,0.29572141]
[1760578589740,5.44671598,111170.0,111160.0,0.18256141]
[1760578590533,5.44671598,111170.0,111160.0,0.29572141]
[1760578590933,5.44671598,111170.0,111160.0,0.18256141]
[1760578591767,5.44671598,111170.0,111160.0,0.29572141]
[1760578592162,5.44671598,111170.0,111160.0,0.18256141]
[1760578592925,5.44671598,111170.0,111160.0,0.29572141]
[1760578593332,5.44671598,111170.0,111160.0,0.18256141]
[1760578593536,5.44671598,111170.0,111160.0,0.29572141]
[1760578593750,5.44671598,111170.0,111160.0,0.18256141]
[1760578594166,5.44671598,111170.0,111160.0,0.29572141]
[1760578594603,5.44671598,111170.0,111160.0,0.18256141]
[1760578594805,5.44671598,111170.0,111160.0,0.11580058]
[1760578595066,5.44671598,111170.0,111160.0,0.29572141]
[1760578595243,5.44671598,111170.0,111160.0,0.18256141]
[1760578595611,5.44671598,111170.0,111160.0,0.29572141]
[1760578596661,5.44671598,111170.0,111160.0,0.18256141]
[1760578597175,5.44671598,111170.0,111160.0,0.29572141]
[1760578597579,5.44671598,111170.0,111160.0,0.18256141]
[1760578597797,5.44671598,111170.0,111160.0,0.29572141]
[1760578598620,5.44671598,111170.0,111160.0,0.18256141]
[1760578598959,5.44671598,111170.0,111160.0,0.11580058]
[1760578599403,6.01180045,111170.0,111160.0,0.00264058]
[1760578599555,6.1510728,111170.0,111160.0,0.11580058]
[1760578599908,6.17812513,111170.0,111160.0,0.00264058]
[1760578600473,6.17812513,111170.0,111160.0,0.11580058]
[1760578600683,6.17812513,111170.0,111160.0,0.00264058]
[1760578601103,6.17912513,111170.0,111160.0,0.00264058]
[1760578601426,6.17912516,111170.0,111160.0,0.00264058]
[1760578601558,6.17912516,111170.0,111160.0,0.11580058]
[1760578601762,6.17912516,111170.0,111160.0,0.00264058]
[1760578601985,6.17912494,111170.0,111160.0,0.00264058]
[1760578602986,6.17912446,111170.0,111160.0,0.00264058]
[1760578603415,5.79407225,111170.0,111160.0,0.11580058]
[1760578603867,5.54132262,111170.0,111160.0,0.00264058]
[1760578604656,5.54132262,111170.0,111160.0,0.11580058]
[1760578604816,5.54132262,111170.0,111160.0,0.00264058]
[1760578605271,5.54132262,111170.0,111160.0,0.11580058]
[1760578605690,5.54132262,111170.0,111160.0,0.00264058]
[1760578606502,5.54132262,111170.0,111160.0,0.11580058]
[1760578607154,5.54132262,111170.0,111160.0,0.00264058]
[1760578607322,5.54132262,111170.0,111160.0,0.11580058]
[1760578607732,5.54132262,111170.0,111160.0,0.00264058]
[1760578607935,5.54132262,111170.0,111160.0,0.11580058]
[1760578608400,5.54132262,111170.0,111160.0,0.00264058]
[1760578608759,5.54132262,111170.0,111160.0,0.11580058]
[1760578608941,5.54132262,111170.0,111160.0,0.00264058]
[1760578609355,5.36141797,111170.0,111160.0,0.00264058]
[1760578609760,5.54132262,111170.0,111160.0,0.11580058]
[1760578610153,5.54132262,111170.0,111160.0,0.00264058]
[1760578610359,5.54132262,111170.0,111160.0,0.11580058]
[1760578611341,5.5413169,111170.0,111160.0,0.00264058]
[1760578611554,5.5413169,111170.0,111160.0,0.11580058]
[1760578611758,5.5413169,111170.0,111160.0,0.00264058]
[1760578612477,5.36141225,111170.0,111160.0,0.11580058]
[1760578612750,4.86111549,111170.0,111160.0,0.18256141]
[1760578612962,4.86111549,111170.0,111160.0,0.29572141]
[1760578613216,4.86111549,111170.0,111160.0,0.18256141]
[1760578613444,5.4347605,111170.0,111160.0,0.11580058]
[1760578613671,5.45162702,111170.0,111160.0,0.11580058]
[1760578613916,5.45162702,111170.0,111160.0,0.00264058]
[1760578614131,5.47590365,111170.0,111160.0,0.11580058]
[1760578614566,5.295999,111170.0,111160.0,0.11580058]
[1760578615018,5.295999,111170.0,111160.0,0.00264058]
[1760578615225,5.47590339,111170.0,111160.0,0.11580058]
[1760578615547,5.47590339,111170.0,111160.0,0.00264058]
[1760578615783,5.47590431,111170.0,111160.0,0.11580058]
[1760578616528,5.47590818,111170.0,111160.0,0.11580058]
[1760578616806,5.47590818,111170.0,111160.0,0.00264058]
[1760578617330,5.47590818,111170.0,111160.0,0.11580058]
[1760578617535,5.09060075,111170.0,111160.0,0.11580058]
[1760578617767,5.47590818,111170.0,111160.0,0.00264058]
[1760578618115,5.47590818,111170.0,111160.0,0.11580058]
[1760578618512,5.47590818,111170.0,111160.0,0.00264058]
[1760578619291,5.47590818,111170.0,111160.0,0.11580058]
[1760578619467,5.47590818,111170.0,111160.0,0.00264058]
[1760578619668,5.47590818,111170.0,111160.0,0.11580058]
[1760578620093,5.29600353,111170.0,111160.0,0.00264058]
[1760578620334,5.25485758,111170.0,111160.0,0.18256141]
[1760578620536,4.86111549,111170.0,111160.0,0.29572141]
[1760578620952,4.83406316,111170.0,111160.0,0.18256141]
[1760578621154,4.83406316,111170.0,111160.0,0.29572141]
[1760578621775,4.83406316,111170.0,111160.0,0.18256141]
[1760578621962,4.83406316,111170.0,111160.0,0.29572141]
[1760578622169,4.83306316,111170.0,111160.0,0.29572141]
[1760578622367,4.83306316,111170.0,111160.0,0.18256141]
[1760578622569,4.83306316,111170.0,111160.0,0.29572141]
[1760578623406,4.83306316,111170.0,111160.0,0.18256141]
[1760578623643,4.83306316,111170.0,111160.0,0.29572141]
[1760578624272,4.83306316,111170.0,111160.0,0.18256141]
[1760578624929,4.83306316,111170.0,111160.0,0.29572141]
[1760578625395,4.83306316,111170.0,111160.0,0.18256141]
[1760578625638,4.83306316,111170.0,111160.0,0.29572141]
[1760578626556,4.83306316,111170.0,111160.0,0.18256141]
[1760578626757,4.83306316,111170.0,111160.0,0.29572141]
[1760578626974,4.83306316,111170.0,111160.0,0.18256141]
[1760578627211,4.83306316,111170.0,111160.0,0.29572141]
[1760578628401,4.83306316,111170.0,111160.0,0.18256141]
[1760578628562,4.83306316,111170.0,111160.0,0.29572141]
[1760578630569,4.83306316,111170.0,111160.0,0.18256141]
[1760578630710,4.83306316,111170.0,111160.0,0.29572141]
[1760578633804,4.83306316,111170.0,111160.0,0.18256141]
[1760578634333,4.83306316,111170.0,111160.0,0.29572141]
[1760578635337,5.21837059,111170.0,111160.0,0.29572141]
[1760578635876,5.21837059,111170.0,111160.0,0.18256141]
[1760578636185,5.21837059,111170.0,111160.0,0.29572141]
[1760578636876,5.21837059,111170.0,111160.0,0.18256141]
[1760578637087,5.21837059,111170.0,111160.0,0.29572141]
[1760578637511,4.83306316,111170.0,111160.0,0.18256141]
[1760578637689,5.21837059,111170.0,111160.0,0.29572141]
[1760578639262,5.21837059,111170.0,111160.0,0.18256141]
[1760578639467,5.21837059,111170.0,111160.0,0.29572141]
[1760578639871,4.83306316,111170.0,111160.0,0.29572141]
[1760578640073,5.21837059,111170.0,111160.0,0.29572141]
[1760578640501,5.24542009,111170.0,111160.0,0.29572141]
[1760578640781,5.24542009,111170.0,111160.0,0.11580058]
[1760578640957,5.42532474,111170.0,111160.0,0.11580058]
[1760578641161,5.24542009,111170.0,111160.0,0.29572141]
[1760578641369,5.42532474,111170.0,111160.0,0.00264058]
[1760578641588,5.24542009,111170.0,111160.0,0.29572141]
[1760578642507,5.24542009,111170.0,111160.0,0.18256141]
[1760578642707,5.24542009,111170.0,111160.0,0.29572141]
[1760578643423,5.24542009,111170.0,111160.0,0.18256141]
[1760578643717,5.24542009,111170.0,111160.0,0.29572141]
[1760578645265,4.86011266,111170.0,111160.0,0.29572141]
[1760578645954,0.37849316,111170.0,111160.0,0.68102884]
[1760578646159,0.00908861,111170.0,111160.0,0.56786884]
[1760578646387,4.84589411,111190.0,111180.0,0.17988846]
[1760578646612,5.49560698,111190.0,111180.0,0.11316]
[1760578646815,5.67547927,111190.0,111170.0,0.17989013]
[1760578647008,5.67547927,111190.0,111180.0,0.11316]
[1760578647190,4.79457,111180.0,111170.0,0.17989013]
[1760578647351,4.84397455,111180.0,111170.0,0.29305013]
[1760578647753,4.84397455,111180.0,111170.0,0.29306465]
[1760578647972,5.40917049,111180.0,111170.0,0.11316]
[1760578648157,5.40917044,111180.0,111160.0,0.18941666]
[1760578648369,5.17987743,111170.0,111160.0,0.18041782]
[1760578648583,5.19928198,111170.0,111160.0,0.29357782]
[1760578648784,5.19928198,111170.0,111160.0,0.18041782]
[1760578648988,5.39918663,111170.0,111160.0,0.00049979]
[1760578649185,5.39918663,111170.0,111160.0,0.11361979]
[1760578649435,5.21928198,111170.0,111160.0,0.29354062]
[1760578650054,0.37940455,111170.0,111160.0,0.18042062]
[1760578650187,0.06785585,111180.0,111170.0,0.17990465]
[1760578650188,0.04357922,111180.0,111170.0,0.17990465]
[1760578650396,0.37653038,111180.0,111170.0,0.17990465]
[1760578650877,0.37653038,111180.0,111170.0,0.29302465]
[1760578651272,0.01653038,111180.0,111170.0,0.17990465]
[1760578651514,0.01653038,111180.0,111170.0,0.29302465]
[1760578651742,0.02704628,111190.0,111170.0,0.29302465]
[1760578651743,0.02704628,111190.0,111180.0,0.17988846]
[1760578651955,0.09704628,111190.0,111180.0,0.17988846]
[1760578652175,0.08693993,111190.0,111180.0,0.17988846]
[1760578652379,0.08693993,111190.0,111180.0,0.29300846]
[1760578653200,0.08793993,111190.0,111180.0,0.29300846]
[1760578653404,0.08793993,111190.0,111180.0,0.17988846]
[1760578653593,0.08793993,111190.0,111180.0,0.29300846]
[1760578653748,0.08693993,111190.0,111180.0,0.11312]
[1760578653961,0.08693993,111190.0,111180.0,0.29300846]
[1760578654992,0.81224736,111190.0,111180.0,0.29300846]
[1760578655315,0.42693993,111190.0,111180.0,0.29300846]
[1760578656044,0.08,111190.0,111180.0,0.29300846]
[1760578656280,0.09694842,111190.0,111180.0,0.29300846]
[1760578658210,0.09694842,111190.0,111180.0,0.17988846]
[1760578658470,0.48225585,111190.0,111180.0,0.29300846]
[1760578659082,0.09694842,111190.0,111180.0,0.17988846]
[1760578659365,0.48225585,111190.0,111180.0,0.17988846]
[1760578659575,0.48225585,111190.0,111180.0,0.29300846]
[1760578659982,0.48225585,111190.0,111180.0,0.17988846]
[1760578660179,0.48225585,111190.0,111180.0,0.29300846]
[1760578660796,0.82225585,111190.0,111180.0,0.29300846]
[1760578662585,0.82225585,111190.0,111180.0,0.17988846]
[1760578662787,0.82225585,111190.0,111180.0,0.29300846]
[1760578663010,0.57396053,111190.0,111180.0,0.29300846]
[1760578663210,0.60396053,111190.0,111180.0,0.17988846]
[1760578663417,0.60396053,111190.0,111180.0,0.29300846]
[1760578663846,0.37,111190.0,111180.0,0.29300846]
[1760578664296,0.37,111190.0,111180.0,0.17988846]
[1760578664977,0.75530743,111190.0,111180.0,0.29300846]
[1760578665497,0.755007,111190.0,111180.0,0.17988846]
[1760578666035,0.755007,111190.0,111180.0,0.29300846]
[1760578666396,0.755007,111190.0,111180.0,0.17988846]
[1760578666561,0.755007,111190.0,111180.0,0.29300846]
[1760578667179,0.755007,111190.0,111180.0,0.17988846]
[1760578667603,0.755007,111190.0,111180.0,0.29300846]
[1760578667953,0.77180845,111190.0,111180.0,0.17988846]
[1760578668154,0.77180845,111190.0,111180.0,0.11312]
[1760578668382,0.77180845,111190.0,111180.0,0.17988846]
[1760578668799,0.77180845,111190.0,111180.0,0.29300846]
[1760578669207,0.77180845,111190.0,111180.0,0.17988846]
[1760578669608,0.77180845,111190.0,111180.0,0.29300846]
[1760578670657,5.40625074,111190.0,111170.0,0.18145643]
[1760578670832,4.86077815,111190.0,111180.0,0.29300846]
[1760578671033,4.88782399,111190.0,111180.0,0.17988846]
[1760578671240,4.86841729,111190.0,111180.0,0.29300846]
[1760578671646,4.86841729,111190.0,111180.0,0.17988846]
[1760578671819,4.86841729,111190.0,111180.0,0.29300846]
[1760578671996,5.25342429,111190.0,111180.0,0.29300846]
[1760578672190,5.43329658,111190.0,111170.0,0.18145643]
[1760578672384,0.385007,111180.0,111170.0,0.18145643]
[1760578672793,0.735007,111180.0,111170.0,0.00155321]
[1760578672990,0.91489546,111180.0,111170.0,0.00155321]
[1760578673198,5.77388703,111180.0,111170.0,0.00155321]
[1760578673397,5.80093495,111180.0,111170.0,0.00155321]
[1760578673644,5.80093495,111180.0,111170.0,0.11467321]
[1760578673849,5.80093495,111180.0,111170.0,0.00155321]
[1760578674575,5.80093495,111180.0,111170.0,0.11467321]
[1760578674793,5.62104649,111180.0,111170.0,0.11467321]
[1760578675008,5.62104649,111180.0,111170.0,0.29457786]
[1760578675209,5.62104649,111180.0,111170.0,0.18145786]
[1760578675409,5.62204649,111180.0,111170.0,0.18145786]
[1760578675607,5.62204649,111180.0,111170.0,0.29457786]
[1760578675773,5.62204649,111180.0,111170.0,0.18145786]
[1760578675970,5.62204649,111180.0,111170.0,0.29457786]
[1760578676161,5.80193495,111180.0,111170.0,0.00155321]
[1760578677016,5.89162507,111180.0,111170.0,0.00155321]
[1760578677217,5.89162507,111180.0,111170.0,0.11467321]
[1760578678005,5.89162507,111180.0,111170.0,0.00155321]
[1760578678212,5.12161107,111180.0,111170.0,0.18145786]
[1760578678421,5.32672961,111180.0,111170.0,0.29457786]
[1760578678760,0.39746249,111180.0,111170.0,0.29457786]
[1760578678883,0.76305492,111180.0,111170.0,0.29457786]
[1760578679083,0.76305492,111180.0,111170.0,0.18145786]
[1760578679084,0.78246949,111180.0,111170.0,0.18145786]
[1760578679326,0.78246949,111180.0,111170.0,0.11467321]
[1760578679530,0.44246949,111180.0,111170.0,0.11467321]
[1760578679910,0.60294338,111180.0,111170.0,0.11467321]
[1760578680286,5.46193495,111180.0,111170.0,0.11467321]
[1760578680650,5.46193495,111180.0,111170.0,0.00155321]
[1760578680840,5.46193495,111180.0,111170.0,0.11467321]
[1760578681574,5.46193495,111180.0,111170.0,0.18145786]
[1760578681794,5.46193495,111180.0,111170.0,0.29457786]
[1760578682061,5.46193495,111180.0,111170.0,0.11467321]
[1760578682542,5.80193495,111180.0,111170.0,0.29457786]
[1760578682970,5.80193495,111180.0,111170.0,0.11467321]
[1760578683212,5.89162507,111180.0,111170.0,0.00155321]
[1760578683399,6.27663207,111180.0,111170.0,0.00155321]
[1760578683551,6.30090294,111180.0,111170.0,0.11467321]
[1760578683751,6.32618608,111180.0,111170.0,0.11467321]
[1760578683955,6.32618608,111180.0,111170.0,0.00155321]
[1760578684162,6.32618608,111180.0,111170.0,0.11467321]
[1760578684566,6.32518608,111180.0,111170.0,0.00155321]
[1760578684774,6.32717083,111180.0,111170.0,0.11467321]
[1760578685395,6.45303519,111180.0,111170.0,0.00155321]
[1760578685595,6.48270924,111180.0,111170.0,0.00155321]
[1760578686555,6.39302716,111180.0,111170.0,0.00155321]
[1760578688613,7.54804816,111180.0,111170.0,0.00155321]
[1760578688867,7.56423288,111180.0,111170.0,0.00155321]
[1760578689727,6.40817021,111180.0,111170.0,0.00155321]
[1760578689987,6.38659472,111180.0,111170.0,0.00155321]
[1760578690191,6.00158772,111180.0,111170.0,0.00155321]
[1760578690399,6.38559472,111180.0,111170.0,0.00155321]
[1760578691017,6.38859472,111180.0,111170.0,0.00155321]
[1760578691853,6.4782768,111180.0,111170.0,0.00155321]
[1760578692299,6.88485929,111180.0,111170.0,0.00155321]
[1760578696106,6.79517721,111180.0,111170.0,0.00155321]
[1760578696293,6.67965511,111180.0,111170.0,0.00155321]
[1760578696496,6.88660156,111180.0,111170.0,0.00155321]
[1760578697133,6.50159456,111180.0,111170.0,0.00155321]
[1760578699295,6.75089456,111180.0,111170.0,0.00155321]
[1760578700328,7.13590156,111180.0,111170.0,0.00155321]
[1760578701218,7.15219345,111180.0,111170.0,0.00155321]
[1760578701874,6.76718645,111180.0,111170.0,0.00155321]
[1760578702532,7.24187553,111180.0,111170.0,0.00155321]
[1760578702994,8.01188953,111180.0,111170.0,0.00155321]
[1760578704705,8.01189841,111180.0,111170.0,0.00155321]
[1760578706184,0.51990465,111170.0,111160.0,0.00049979]
[1760578706380,6.4228914,111170.0,111160.0,0.00049979]
[1760578706645,6.4228914,111170.0,111160.0,0.00167464]
[1760578706869,6.449951,111170.0,111160.0,0.00167464]
[1760578707385,6.450951,111170.0,111160.0,0.00167464]
[1760578707590,6.451951,111170.0,111160.0,0.00167464]
[1760578708219,6.47134324,111170.0,111160.0,0.00167464]
[1760578709262,6.42287271,111170.0,111160.0,0.00167464]
[1760578712079,6.03786571,111170.0,111160.0,0.00167464]
[1760578714379,6.13866258,111170.0,111160.0,0.00167464]
[1760578715908,5.71753336,111170.0,111160.0,0.00167464]
[1760578716037,5.31291877,111170.0,111160.0,0.00167464]
[1760578716269,5.70154673,111170.0,111160.0,0.00167464]
[1760578716471,6.08655373,111170.0,111160.0,0.11483464]
[1760578716814,5.74655373,111170.0,111160.0,0.11483464]
[1760578717225,6.08555373,111170.0,111160.0,0.11483464]
[1760578717570,5.70054673,111170.0,111160.0,0.11483464]
[1760578717770,5.70154673,111170.0,111160.0,0.00167464]
[1760578717980,5.7015769,111170.0,111160.0,0.11483464]
[1760578718168,6.0865839,111170.0,111160.0,0.11483464]
[1760578718373,6.0865839,111170.0,111160.0,0.00167464]
[1760578718571,6.0865839,111170.0,111160.0,0.11483464]
[1760578719002,6.0865839,111170.0,111160.0,0.00167464]
[1760578719003,6.45914522,111170.0,111160.0,0.00167464]
[1760578719294,6.48072071,111170.0,111160.0,0.00167464]
[1760578719494,6.09571371,111170.0,111160.0,0.00167464]
[1760578719816,6.45914522,111170.0,111160.0,0.00167464]
[1760578720027,6.07413822,111170.0,111160.0,0.00167464]
[1760578721502,6.45914522,111170.0,111160.0,0.00167464]
[1760578722132,6.07413822,111170.0,111160.0,0.00167464]
[1760578722332,6.45914522,111170.0,111160.0,0.00167464]
[1760578722760,6.45070631,111170.0,111160.0,0.00167464]
[1760578722960,6.03795542,111170.0,111160.0,0.00167464]
[1760578723162,6.0865584,111170.0,111160.0,0.11479464]
[1760578723542,6.0865584,111170.0,111160.0,0.00167464]
[1760578723768,6.0865584,111170.0,111160.0,0.11479464]
[1760578723971,6.0865584,111170.0,111160.0,0.00167464]
[1760578724381,6.0865584,111170.0,111160.0,0.11479464]
[1760578724743,6.08660525,111170.0,111160.0,0.00167464]
[1760578724952,6.08660525,111170.0,111160.0,0.11479464]
[1760578725549,6.08660525,111170.0,111160.0,0.00167464]
[1760578725750,6.08660525,111170.0,111160.0,0.11479464]
[1760578726204,6.08660525,111170.0,111160.0,0.00167464]
[1760578726391,6.08660525,111170.0,111160.0,0.11479464]
[1760578726589,5.89049205,111170.0,111160.0,0.11479464]
[1760578726790,6.0703967,111170.0,111160.0,0.11479464]
[1760578727515,5.68573525,111170.0,111160.0,0.00167464]
[1760578727888,5.68573525,111170.0,111160.0,0.11479464]
[1760578728138,5.68573525,111170.0,111160.0,0.00167464]
[1760578728346,5.68573525,111170.0,111160.0,0.11479464]
[1760578728977,5.68573525,111170.0,111160.0,0.00167464]
[1760578729203,5.68573525,111170.0,111160.0,0.11479464]
[1760578729869,5.68573475,111170.0,111160.0,0.11479464]
[1760578730317,6.0710873,111170.0,111160.0,0.11479464]
[1760578730539,6.0710873,111170.0,111160.0,0.00167464]
[1760578730540,6.10726958,111170.0,111160.0,0.00167464]
[1760578730761,5.33656448,111170.0,111160.0,0.00167464]
[1760578730983,5.71348046,111170.0,111160.0,0.00167464]
[1760578731203,5.72191738,111170.0,111160.0,0.00167464]
[1760578734269,5.72191738,111170.0,111160.0,0.11479464]
[1760578734481,6.10726993,111170.0,111160.0,0.11479464]
[1760578734665,6.17263281,111170.0,111160.0,0.00167464]
[1760578734844,6.17263322,111170.0,111160.0,0.00167464]
[1760578735895,6.10727034,111170.0,111160.0,0.00167464]
[1760578736792,6.145053,111170.0,111160.0,0.00167464]
[1760578738020,6.12347751,111170.0,111160.0,0.00167464]
[1760578739727,5.73812496,111170.0,111160.0,0.00167464]
[1760578741105,6.12347751,111170.0,111160.0,0.00167464]
[1760578741356,6.21315959,111170.0,111160.0,0.00167464]
[1760578742673,6.12347751,111170.0,111160.0,0.00167464]
[1760578743748,6.12348173,111170.0,111160.0,0.00167464]
[1760578743957,6.10660526,111170.0,111160.0,0.00167464]
[1760578744172,6.12348173,111170.0,111160.0,0.00167464]
[1760578748863,6.11348173,111170.0,111160.0,0.00167464]
[1760578749069,6.14814191,111170.0,111160.0,0.00167464]
[1760578749898,6.11348173,111170.0,111160.0,0.00167464]
[1760578750523,5.72812918,111170.0,111160.0,0.00167464]
[1760578751528,6.11348356,111170.0,111160.0,0.00167464]
[1760578754180,5.72813101,111170.0,111160.0,0.00167464]
[1760578755243,6.11348356,111170.0,111160.0,0.00167464]
[1760578756351,6.06488058,111170.0,111160.0,0.00167464]
[1760578756579,6.11351116,111170.0,111160.0,0.00167464]
[1760578757368,6.06488058,111170.0,111160.0,0.00167464]
[1760578761117,6.15456266,111170.0,111160.0,0.00167464]
[1760578761675,5.99053558,111170.0,111160.0,0.00167464]
[1760578761891,6.07162423,111170.0,111160.0,0.00167464]
[1760578765737,6.03918877,111170.0,111160.0,0.00167464]
[1760578766754,5.63761732,111170.0,111160.0,0.00167464]
[1760578767160,6.02296987,111170.0,111160.0,0.00167464]
[1760578768246,6.11778987,111170.0,111160.0,0.00167464]
[1760578768426,6.02296987,111170.0,111160.0,0.00167464]
[1760578771750,6.03918877,111170.0,111160.0,0.00167464]
[1760578773577,6.03920408,111170.0,111160.0,0.00167464]
[1760578774402,6.03920401,111170.0,111160.0,0.00167464]
[1760578775240,6.0392098,111170.0,111160.0,0.00167464]
[1760578780327,5.68512977,111170.0,111160.0,0.00167464]
[1760578780531,5.63647658,111170.0,111160.0,0.00167464]
[1760578780710,5.66353455,111170.0,111160.0,0.00167464]
[1760578781248,5.278182,111170.0,111160.0,0.00167464]
[1760578782402,5.618182,111170.0,111160.0,0.00167464]
[1760578784227,4.67674252,111170.0,111160.0,0.00167464]
[1760578784426,4.67674252,111170.0,111160.0,0.19958755]
[1760578784427,4.52756256,111170.0,111160.0,0.19958755]
[1760578784715,4.52756256,111170.0,111160.0,0.18159547]
[1760578784716,0.14733756,111170.0,111160.0,0.18159547]
[1760578784925,0.122,111170.0,111160.0,0.18159547]
[1760578785126,0.122,111170.0,111160.0,0.29471547]
[1760578785127,0.462,111170.0,111160.0,0.29471547]
[1760578785348,0.121,111170.0,111160.0,0.29471547]
[1760578785558,0.121,111170.0,111160.0,0.18159547]
[1760578785982,0.122,111170.0,111160.0,0.18159547]
[1760578786195,0.00037852,111180.0,111170.0,0.17990465]
[1760578786372,0.06037852,111180.0,111170.0,0.29302465]
[1760578786820,0.06037852,111180.0,111170.0,0.26959477]
[1760578787035,0.06037852,111180.0,111170.0,0.38271477]
[1760578787455,0.06037852,111180.0,111170.0,0.26959477]
[1760578787660,0.06037852,111180.0,111170.0,0.38271477]
[1760578787874,0.06037852,111180.0,111170.0,0.26959477]
[1760578788156,0.06037852,111180.0,111170.0,0.38271477]
[1760578788337,0.06037852,111180.0,111170.0,0.26959477]
[1760578788762,0.06037852,111180.0,111170.0,0.38271477]
[1760578788927,0.06037852,111180.0,111170.0,0.26959477]
[1760578789128,0.06037852,111180.0,111170.0,0.38271477]
[1760578789533,0.06037852,111180.0,111170.0,0.65458718]
[1760578789773,0.00037852,111180.0,111170.0,0.76770718]
[1760578790205,0.00037852,111180.0,111170.0,0.65458718]
[1760578790415,0.00037852,111180.0,111170.0,0.76770718]
[1760578790733,0.00037852,111180.0,111170.0,0.65458718]
[1760578791177,0.00037852,111180.0,111170.0,0.76766718]
[1760578791814,0.00037852,111180.0,111170.0,0.76866718]
[1760578792016,0.00037852,111180.0,111170.0,0.795711]
[1760578793243,0.00037852,111180.0,111170.0,0.682631]
[1760578793465,0.00037852,111180.0,111170.0,0.795711]
[1760578793697,0.34,111200.0,111190.0,0.17987229]
[1760578793907,0.0002,111210.0,111200.0,0.17985611]
[1760578794111,0.1002,111210.0,111200.0,0.17985611]
[1760578794328,0.4402,111210.0,111200.0,0.29293611]
[1760578794543,0.47854855,111210.0,111200.0,0.29293611]
[1760578794959,0.47854855,111210.0,111200.0,0.17985611]
[1760578795163,0.47863842,111210.0,111200.0,0.29293611]
[1760578795574,0.86363083,111210.0,111200.0,0.17985611]
[1760578795889,0.86363083,111210.0,111200.0,0.29293611]
[1760578796345,0.86363083,111210.0,111200.0,0.17985611]
[1760578796545,0.86363083,111210.0,111200.0,0.29293611]
[1760578796726,0.86363083,111210.0,111200.0,0.17985611]
[1760578797499,0.86363083,111210.0,111200.0,0.29293611]
[1760578797903,0.86363083,111210.0,111200.0,0.17985611]
[1760578798329,0.86363083,111210.0,111200.0,0.29293611]
[1760578798541,0.86363083,111210.0,111200.0,0.17985611]
[1760578798942,0.86363083,111210.0,111200.0,0.29293611]
[1760578799388,0.86363083,111210.0,111200.0,0.17985611]
[1760578799588,0.86363083,111210.0,111200.0,0.29293611]